[Event "Polish Youth B18 Championship 2023"]
[Site "Jastrzebia Gora"]
[Date "2023.03.18"]
[Round "8.18"]
[White "Malik, Maciej"]
[Black "Smetek, Michal"]
[Result "0-1"]
[ECO "A08"]
[WhiteElo "2163"]
[BlackElo "1787"]
[Annotator "TA"]
[PlyCount "121"]
[EventDate "2023.03.11"]
[EventType "swiss"]
[EventCountry "POL"]
[SourceTitle "playchess.com"]
[Source "ChessBase"]
[SourceQuality "1"]
[TimeControl "40/5400+30:1800+30"]

{[%evp 10,121,-18,-33,-1,0,-4,5,-13,-39,-30,-29,-16,-27,27,39,30,0,0,0,0,0,0,-27,25,26,15,25,22,25,27,27,22,17,72,16,33,37,49,57,87,85,94,90,87,93,86,58,60,56,66,65,73,72,77,61,226,90,90,18,21,18,18,24,21,0,0,0,0,-106,-96,-335,-320,-473,-473,-473,-471,-472,-471,-1663,-1542,-1523,-8889,-12832,-12832,-12833,-12833,-12834,-12835,-12785,-4631,-12839,-12837,-12841,-12841,-12840,-12839,-12843,-12843,-12844,-12844,-12845,-12845,-12845,-12846,-12846,-12847,-12847,-12847,-12849,-12848,-12849,-12848,-27999]} 1. Nf3 {[%emt 0:01:45]} d5 {[%emt 0:00:09]} 2. g3 {[%emt 0:00:23]} c5 {[%emt 0:00:30]} 3. Bg2 {[%emt 0:00:07]} Nc6 {[%emt 0:00:04]} 4. O-O {[%emt 0:00:08]} e5 {[%emt 0:00:18]} 5. d3 {[%emt 0:00:06]} Be7 {[%emt 0:00:34]} 6. Nbd2 {[%emt 0:02:44]} g5 {[%emt 0:05:32] A08: King's Indian Attack.} 7. e4 {[%emt 0:04:30] Black must now prevent exd5.} d4 {[%emt 0:08:32]} 8. Nc4 {[%emt 0:00:32]} f6 {[%emt 0:00:16] The position is equal.} 9. a4 {[%emt 0:03:21]} h5 {[%emt 0:03:37]} 10. h4 {[%emt 0:07:58]} Bg4 {[%emt 0:00:42] [#]} 11. Qd2 $146 {[%emt 0:04:16][%cal Rh4g5]} ({Predecessor:} 11. Qe1 Bxf3 12. Bxf3 gxh4 13. Qe2 hxg3 14. Bxh5+ Kd7 15. fxg3 Qf8 16. g4 Qg7 17. Qg2 {1-0 Waghorn,K-Boross Harmer,P Ontario-ch U20 1981 (4)}) 11... Bxf3 {[%emt 0:01:49]} (11... Qc7 $142) 12. Bxf3 $11 {[%emt 0:00:08]} gxh4 {[%emt 0:01:05]} 13. gxh4 {[%emt 0:00:06]} Qc7 {[%emt 0:09:52]} 14. Qe2 {[%emt 0:01:46]} O-O-O {[%emt 0:01:05]} 15. Bg2 {[%emt 0:02:14][%cal Bf3g2,Bg2h3,Bh3f5][%mdl 32]} (15. Bxh5 f5 16. Bg6 (16. exf5 $2 Nf6 $19) 16... fxe4 $17) 15... Kb8 {[%emt 0:01:13]} 16. Bh3 {[%emt 0:02:03]} Nh6 {[%emt 0:10:02]} (16... f5 $142) 17. Bxh6 {[%emt 0:01:59]} (17. Qxh5 Rdg8+ 18. Bg2 Ng4 $19) 17... Rxh6 {[%emt 0:00:32] Black is weak on the light squares} 18. Bf5 {[%emt 0:00:08]} Rhh8 {[%emt 0:01:06]} 19. Kh1 {[%emt 0:01:39]} Bf8 {[%emt 0:00:30]} 20. Rg1 {[%emt 0:03:55]} Bh6 {[%emt 0:01:03]} 21. Rg2 {[%emt 0:03:52]} (21. Qxh5 $2 Be3 22. Qg6 (22. Qg4 $2 Bxf2 23. h5 Bxg1 $19) 22... Bxf2 $19) 21... Rdg8 {[%emt 0:08:04]} (21... b6 $11) 22. Rag1 {[%emt 0:10:38]} (22. Qxh5 Bg5 23. Qg4 Qd8 $15) (22. Rxg8+ $16 Rxg8 23. Rg1 (23. Qxh5 Qg7 $11) (23. Be6 Rh8 $11) 23... Rxg1+ 24. Kxg1) 22... Rxg2 {[%emt 0:00:26]} 23. Rxg2 {[%emt 0:00:06]} Qd8 {[%emt 0:08:03]} 24. Qd1 {[%emt 0:06:42]} Ne7 {[%emt 0:02:30]} 25. Be6 {[%emt 0:01:10]} ({Reject} 25. Qxh5 $6 Bf4 26. Qg4 Nxf5 27. exf5 Bg5 $11) 25... Qe8 {[%emt 0:05:29]} 26. Qf3 {[%emt 0:19:27]} Rf8 {[%emt 0:00:55]} 27. b3 {[%emt 0:02:35]} Ng6 {[%emt 0:14:29] [#]} 28. Bd7 $1 {[%emt 0:08:32][%mdl 64] Deflection} Nxh4 {[%emt 0:05:35]} 29. Qh3 {[%emt 0:02:23]} Qe7 {[%emt 0:00:19]} 30. Qxh4 {[%emt 0:00:43]} Qxd7 {[%emt 0:00:09]} 31. Qxh5 {[%emt 0:00:30]} Bf4 {[%emt 0:04:59]} 32. Kg1 {[%emt 0:00:43]} Rf7 $2 {[%emt 0:04:59] [#]} ({Black should try} 32... Re8 $14) 33. Rg6 {[%emt 0:06:31]} (33. Qh8+ $1 $18 Kc7 34. Kf1 (34. Qa8 Rg7 $11)) 33... Kc7 $16 {[%emt 0:01:05]} 34. Qg4 {[%emt 0:02:53]} (34. Qf5 $16) 34... Qxg4+ $11 {[%emt 0:01:01]} 35. Rxg4 {[%emt 0:00:19][%mdl 4096] Endgame KRB-KRN} b6 {[%emt 0:00:49]} 36. Rg8 {[%emt 0:00:23]} a6 {[%emt 0:00:33]} 37. a5 {[%emt 0:00:11]} b5 {[%emt 0:00:29]} 38. Nb6 {[%emt 0:00:05]} Kb7 {[%emt 0:00:31]} 39. Rc8 {[%emt 0:01:30]} (39. Nd5 $11 {keeps the balance.}) 39... Bd2 $17 {[%emt 0:00:25] White is on the road to losing.} 40. Rxc5 $2 {[%emt 0:00:00]} (40. Re8 $17) 40... Bxa5 $19 {[%emt 0:00:00]} 41. Nd5 {[%emt 0:02:05]} (41. Nc4 $142 Bc7 42. Nd2) 41... Bb6 {[%emt 0:03:10] Black is clearly winning.} 42. Nxb6 {[%emt 0:01:03]} Kxb6 {[%emt 0:00:14] KR-KR} 43. Rc8 {[%emt 0:00:34]} a5 {[%emt 0:01:14] ...a4 is the strong threat.} 44. Kf1 {[%emt 0:05:30]} (44. Kg2 $142 a4 45. Rh8) 44... a4 {[%emt 0:02:09] And now ...a3 would win.} 45. bxa4 {[%emt 0:15:35]} bxa4 {[%emt 0:00:11][%cal Bb5a4,Ba4a3,Ba3a2][%mdl 32]} 46. Ra8 {[%emt 0:00:14]} Ra7 {[%emt 0:02:09]} 47. Rb8+ {[%emt 0:00:30]} Ka5 {[%emt 0:01:11]} 48. Rb2 {[%emt 0:03:28]} a3 {[%emt 0:00:50]} 49. Ra2 {[%emt 0:00:01]} Ka4 {[%emt 0:00:19]} 50. Ke2 {[%emt 0:00:18]} Rb7 {[%emt 0:00:21]} 51. Kd2 {[%emt 0:00:40]} Rb2 {[%emt 0:00:09]} 52. Ra1 {[%emt 0:00:17]} a2 {[%emt 0:00:21]} 53. Kc1 {[%emt 0:00:34]} Ka3 {[%emt 0:00:05]} 54. f3 {[%emt 0:00:08]} Rb8 {[%emt 0:00:17]} 55. c3 {[%emt 0:00:21]} dxc3 {[%emt 0:00:15] ( -> ...Rb2)} 56. Kc2 {[%emt 0:00:02]} Rb2+ {[%emt 0:01:14]} 57. Kxc3 {[%emt 0:00:15]} Rb1 {[%emt 0:00:16][%mdl 64] Trapped Piece} 58. Rxa2+ {[%emt 0:00:03]} Kxa2 {[%emt 0:00:04]} 59. d4 {[%emt 0:00:04]} Rb3+ {[%emt 0:00:56]} 60. Kc4 {[%emt 0:00:16]} exd4 61. Kxd4 {Weighted Error Value: White=0.50/Black=0.12 (very precise)} 0-1

[Event "Polish Youth B18 Championship 2023"]
[Site "Jastrzebia Gora"]
[Date "2023.03.18"]
[Round "8.19"]
[White "Kotowicz, Kamil"]
[Black "Czarniecki, Pawel"]
[Result "0-1"]
[ECO "D02"]
[WhiteElo "1828"]
[BlackElo "1625"]
[Annotator "NA RC COMBH"]
[PlyCount "140"]
[EventDate "2023.03.11"]
[EventType "swiss"]
[EventCountry "POL"]
[SourceTitle "playchess.com"]
[Source "ChessBase"]
[SourceQuality "1"]
[TimeControl "40/5400+30:1800+30"]

1. d4 {[%emt 0:00:48]} d5 {[%emt 0:00:03]} 2. Nf3 {[%emt 0:00:21]} Nf6 {[%emt 0:00:10]} 3. g3 {[%emt 0:00:38]} Bf5 {[%emt 0:01:13]} 4. c4 {[%emt 0:00:32]} c6 {[%emt 0:00:49]} 5. Qb3 {[%emt 0:01:36]} Qb6 {[%emt 0:00:25]} 6. c5 {[%emt 0:00:43]} Qxb3 {[%emt 0:01:00]} 7. axb3 {[%emt 0:00:09]} g6 {[%emt 0:00:56]} 8. Nc3 {[%emt 0:02:54]} Bg7 {[%emt 0:01:57]} 9. h3 {[%emt 0:01:56]} h5 {[%emt 0:01:43]} 10. Bf4 {[%emt 0:01:24]} O-O {[%emt 0:02:38]} 11. e3 {[%emt 0:01:35]} Nfd7 {[%emt 0:04:17]} 12. Kd2 {[%emt 0:04:59]} (12. b4 $14) 12... f6 {[%emt 0:12:31]} (12... e5 $1 $11 13. Bxe5 Nxe5 14. Nxe5 Bxe5 $11 15. dxe5 Nd7) 13. Bxb8 {[%emt 0:01:42]} Rfxb8 {[%emt 0:00:12] [#]} 14. Nh4 $1 {[%emt 0:00:30]} Kf7 {[%emt 0:02:53]} 15. Be2 {[%emt 0:01:32]} (15. Nxf5 $14 {is more appropriate.} gxf5 16. b4) 15... Be6 {[%emt 0:02:48]} 16. Na4 {[%emt 0:05:29]} Rh8 {[%emt 0:05:16]} 17. Bd3 {[%emt 0:02:55]} Rh6 {[%emt 0:04:28]} 18. Nc3 {[%emt 0:02:55]} f5 {[%emt 0:01:40] [#]} 19. b4 $1 {[%emt 0:01:20]} Bf6 {[%emt 0:04:00]} 20. b5 {[%emt 0:03:13]} Rhh8 {[%emt 0:00:38]} 21. bxc6 {[%emt 0:00:48]} bxc6 {[%emt 0:00:06]} 22. Ra6 {[%emt 0:01:05]} Rhc8 {[%emt 0:02:42]} 23. Rha1 {[%emt 0:01:18]} Rc7 {[%emt 0:00:07]} 24. b4 {[%emt 0:00:57]} Nb8 {[%emt 0:05:28]} 25. R6a2 {[%emt 0:02:21]} Rb7 {[%emt 0:03:58]} 26. Na4 {[%emt 0:03:30]} Rxb4 {[%emt 0:04:32]} 27. Kc3 {[%emt 0:03:59]} Rb7 {[%emt 0:00:50]} 28. Nb6 {[%emt 0:00:23]} axb6 {[%emt 0:00:13]} 29. Rxa8 {[%emt 0:00:06]} bxc5 {[%emt 0:00:08]} 30. Nf3 {[%emt 0:03:11]} (30. Rb1 $1 $11 Rxb1 31. Bxb1 cxd4+ 32. exd4) 30... cxd4+ {[%emt 0:03:41]} 31. exd4 {[%emt 0:00:29]} c5 {[%emt 0:02:10]} 32. h4 $2 {[%emt 0:03:11]} (32. Kd2 $17 {was worth a try.}) 32... Nc6 {[%emt 0:04:31]} 33. Ng5+ {[%emt 0:00:34]} Bxg5 {[%emt 0:00:11]} 34. hxg5 {[%emt 0:01:48]} Nxd4 {[%emt 0:00:27]} ({Inferior is} 34... cxd4+ 35. Kc2 $15) 35. Rb1 {[%emt 0:03:33]} Rxb1 {[%emt 0:01:15]} 36. Bxb1 {[%emt 0:00:02]} Nf3 {[%emt 0:00:11]} 37. Ra5 {[%emt 0:01:56]} c4 {[%emt 0:02:44]} 38. Ba2 {[%emt 0:02:10]} Nxg5 {[%emt 0:00:41]} 39. Kd4 {[%emt 0:00:17]} Ne4 {[%emt 0:03:30]} 40. f3 {[%emt 0:00:00]} Nf6 {[%emt 0:00:00]} 41. Bb1 {[%emt 0:02:51]} Nd7 {[%emt 0:04:26]} 42. Ra6 {[%emt 0:00:24]} Kf6 {[%emt 0:01:48]} 43. Bc2 {[%emt 0:00:15]} Ne5 {[%emt 0:00:46]} 44. f4 {[%emt 0:00:44]} Nf7 {[%emt 0:01:26]} 45. Bd1 {[%emt 0:02:10]} Nd6 {[%emt 0:04:15]} 46. Ba4 {[%emt 0:00:55]} Bc8 {[%emt 0:07:17]} 47. Rb6 {[%emt 0:00:45]} Bb7 {[%emt 0:00:08]} 48. Bc6 {[%emt 0:02:57]} Bxc6 {[%emt 0:00:10]} 49. Rxc6 {[%emt 0:00:04]} g5 {[%emt 0:08:38]} 50. Kxd5 {[%emt 0:04:27]} gxf4 {[%emt 0:05:53]} 51. gxf4 {[%emt 0:00:14]} h4 {[%emt 0:00:04]} 52. Ra6 {[%emt 0:05:52]} Kg6 {[%emt 0:01:38]} 53. Ra1 {[%emt 0:02:32]} Ne4 {[%emt 0:02:26]} 54. Ke5 {[%emt 0:00:47]} Ng3 {[%emt 0:00:53]} (54... h3 $142 55. Ra2 Nf6) 55. Ra3 {[%emt 0:02:00]} Kh5 {[%emt 0:00:59]} 56. Rc3 {[%emt 0:00:19]} Kg4 {[%emt 0:02:08]} 57. Rxc4 {[%emt 0:00:15]} h3 {[%emt 0:00:49]} 58. Rc2 {[%emt 0:00:09]} Nf1 {[%emt 0:00:59]} 59. Rf2 {[%emt 0:00:12]} Ne3 {[%emt 0:01:00]} 60. Re2 {[%emt 0:02:02]} Ng2 {[%emt 0:03:12]} 61. Rf2 {[%emt 0:00:36]} Kg3 {[%emt 0:01:00]} 62. Rf1 {[%emt 0:00:42]} h2 {[%emt 0:00:39]} 63. Rh1 {[%emt 0:01:43]} Nh4 {[%emt 0:00:46]} ({And not} 63... Nxf4 64. Kxf5 Nh5 65. Ke6 $11) 64. Ke6 {[%emt 0:01:24]} Kg2 {[%emt 0:00:44]} ({Weaker is} 64... Kxf4 65. Rxh2 Kg3 66. Re2 $11) 65. Ra1 {[%emt 0:00:14]} h1=Q {[%emt 0:00:11]} 66. Rxh1 {[%emt 0:00:04]} Kxh1 {[%emt 0:00:06]} 67. Kxe7 {[%emt 0:00:06]} Kg2 {[%emt 0:00:05]} 68. Kf6 {[%emt 0:00:02]} Kf3 {[%emt 0:00:36]} 69. Kg5 {[%emt 0:00:04]} Kg3 {[%emt 0:00:06]} 70. Kh5 {[%emt 0:00:03]} Nf3 {[%emt 0:00:15]} 0-1

[Event "Polish Youth B18 Championship 2023"]
[Site "Jastrzebia Gora"]
[Date "2023.03.18"]
[Round "8.20"]
[White "Kossowski, Pawel"]
[Black "Pieczulis, Blazej"]
[Result "1/2-1/2"]
[ECO "B15"]
[WhiteElo "1766"]
[BlackElo "1784"]
[Annotator "NA RC COMBH"]
[PlyCount "83"]
[EventDate "2023.03.11"]
[EventType "swiss"]
[EventCountry "POL"]
[SourceTitle "playchess.com"]
[Source "ChessBase"]
[SourceQuality "1"]
[TimeControl "40/5400+30:1800+30"]

1. e4 {[%emt 0:00:01]} c6 2. d4 {[%emt 0:00:16]} d5 {[%emt 0:00:09]} 3. Nc3 {[%emt 0:00:12]} dxe4 {[%emt 0:00:06]} 4. Nxe4 {[%emt 0:00:06]} Nf6 {[%emt 0:00:03]} 5. Nxf6+ {[%emt 0:01:31]} exf6 {[%emt 0:00:03]} 6. c3 {[%emt 0:00:24]} Bd6 {[%emt 0:00:35]} 7. Bd3 {[%emt 0:02:09]} O-O {[%emt 0:02:16]} 8. Qc2 {[%emt 0:01:02]} h5 {[%emt 0:09:56]} 9. Ne2 {[%emt 0:02:27]} Re8 {[%emt 0:13:04]} 10. Be3 {[%emt 0:01:23]} Be6 {[%emt 0:05:29]} 11. O-O {[%emt 0:06:32]} Qc7 {[%emt 0:09:31]} 12. h3 {[%emt 0:02:48]} c5 {[%emt 0:12:02]} 13. c4 {[%emt 0:05:08]} a6 {[%emt 0:11:52]} 14. d5 {[%emt 0:02:28]} Bd7 {[%emt 0:00:07]} 15. a4 {[%emt 0:11:44]} a5 {[%emt 0:00:39]} 16. Qd2 {[%emt 0:05:30]} Na6 {[%emt 0:03:56]} 17. Nf4 {[%emt 0:02:49]} Bxf4 {[%emt 0:08:13]} 18. Bxf4 {[%emt 0:00:06]} Qc8 {[%emt 0:00:55]} 19. Be2 {[%emt 0:15:32]} h4 {[%emt 0:03:11]} 20. Bf3 {[%emt 0:00:58]} Nb4 {[%emt 0:00:35]} 21. b3 {[%emt 0:08:22]} Bf5 {[%emt 0:00:43]} 22. Rfe1 {[%emt 0:05:57]} Nc2 {[%emt 0:01:27]} 23. Rxe8+ {[%emt 0:00:05]} Qxe8 {[%emt 0:00:01]} 24. Rc1 {[%emt 0:01:53]} Nd4 {[%emt 0:02:52]} 25. Bd1 {[%emt 0:01:45]} Qe4 {[%emt 0:00:52]} 26. f3 {[%emt 0:02:21]} Qe7 {[%emt 0:00:45]} 27. Rc3 {[%emt 0:00:29]} b6 {[%emt 0:02:51]} 28. Re3 {[%emt 0:01:31]} Qd7 {[%emt 0:00:14]} 29. Re1 {[%emt 0:04:37]} Re8 {[%emt 0:00:34]} 30. Be3 {[%emt 0:02:27]} Qd6 {[%emt 0:04:16]} 31. Bxd4 {[%emt 0:06:01]} Rxe1+ {[%emt 0:00:10]} 32. Qxe1 {[%emt 0:00:05]} cxd4 {[%emt 0:00:03]} 33. Qxh4 {[%emt 0:00:56]} Qe5 {[%emt 0:00:42]} 34. Qf2 {[%emt 0:01:01]} g5 {[%emt 0:00:34]} 35. Qe2 {[%emt 0:04:30]} Qf4 {[%emt 0:01:57]} 36. Kf1 {[%emt 0:00:47]} Kg7 {[%emt 0:03:24]} 37. Kg1 {[%emt 0:01:45]} Qc1 {[%emt 0:01:36]} 38. g4 {[%emt 0:00:51]} d3 {[%emt 0:01:17]} 39. Qf1 {[%emt 0:00:53]} Bg6 {[%emt 0:00:20]} 40. d6 {[%emt 0:00:00]} Qf4 {[%emt 0:00:00]} 41. d7 {[%emt 0:05:07]} Qd6 {[%emt 0:05:10]} 42. Qf2 {[%emt 0:13:57]} 1/2-1/2

[Event "Polish Youth B18 Championship 2023"]
[Site "Jastrzebia Gora"]
[Date "2023.03.18"]
[Round "8.21"]
[White "Kozlowski, Franciszek"]
[Black "Wesolek, Krzysztof"]
[Result "1-0"]
[ECO "D20"]
[WhiteElo "1829"]
[BlackElo "1765"]
[Annotator "NA RC COMBH"]
[PlyCount "95"]
[EventDate "2023.03.11"]
[EventType "swiss"]
[EventCountry "POL"]
[SourceTitle "playchess.com"]
[Source "ChessBase"]
[SourceQuality "1"]
[TimeControl "40/5400+30:1800+30"]

1. d4 {[%emt 0:00:02]} d5 {[%emt 0:01:20]} 2. c4 {[%emt 0:00:10]} dxc4 {[%emt 0:00:06]} 3. e3 {[%emt 0:00:39]} a6 {[%emt 0:00:06]} 4. Bxc4 {[%emt 0:00:19]} Nf6 {[%emt 0:00:03]} 5. Nf3 {[%emt 0:00:20]} b5 {[%emt 0:00:03]} 6. Bb3 {[%emt 0:01:25]} Bb7 {[%emt 0:00:24]} 7. O-O {[%emt 0:00:37]} e6 {[%emt 0:00:31]} 8. a4 {[%emt 0:01:25]} b4 {[%emt 0:02:49]} 9. a5 {[%emt 0:01:52]} Nbd7 {[%emt 0:01:27]} 10. Nbd2 {[%emt 0:00:47]} Be7 {[%emt 0:02:32]} 11. Nc4 {[%emt 0:02:42]} O-O {[%emt 0:02:10]} 12. Qe2 {[%emt 0:02:04]} c5 {[%emt 0:03:50]} 13. Rd1 {[%emt 0:01:37]} Qc7 {[%emt 0:02:39]} 14. Bd2 {[%emt 0:05:48]} Rac8 {[%emt 0:30:08]} 15. Rac1 {[%emt 0:04:06]} Qb8 {[%emt 0:02:42]} 16. Ba4 {[%emt 0:08:21]} cxd4 {[%emt 0:09:10]} 17. exd4 {[%emt 0:01:06]} Rfd8 {[%emt 0:04:22]} 18. Bg5 {[%emt 0:00:40]} Nd5 $11 {[%emt 0:12:28]} 19. Bxe7 {[%emt 0:03:04]} Nxe7 {[%emt 0:00:02]} 20. Ng5 {[%emt 0:13:56]} Nf8 {[%emt 0:15:50]} 21. Qh5 {[%emt 0:08:38]} g6 {[%emt 0:00:28]} 22. Qg4 {[%emt 0:04:52]} Nf5 {[%emt 0:03:51]} 23. Ne4 {[%emt 0:05:07]} Bxe4 {[%emt 0:01:44]} 24. Qxe4 {[%emt 0:00:09]} Qa7 {[%emt 0:01:32]} 25. Nb6 {[%emt 0:06:03]} Rxc1 {[%emt 0:00:12]} 26. Rxc1 {[%emt 0:00:08]} Rxd4 {[%emt 0:00:24]} 27. Qe5 {[%emt 0:00:23]} Qe7 {[%emt 0:01:45]} 28. Rc8 {[%emt 0:01:23]} f6 {[%emt 0:01:05]} 29. Qb8 {[%emt 0:00:49]} Qd6 {[%emt 0:00:36]} 30. Qxd6 {[%emt 0:00:52]} Nxd6 {[%emt 0:00:02]} 31. Ra8 {[%emt 0:01:01]} Nb5 {[%emt 0:00:30]} 32. h3 {[%emt 0:00:25]} Rd2 {[%emt 0:01:07]} 33. Bxb5 {[%emt 0:00:30]} axb5 {[%emt 0:00:02]} 34. a6 {[%emt 0:00:11]} Rxb2 {[%emt 0:00:25]} 35. Nd7 {[%emt 0:01:34]} b3 {[%emt 0:01:01]} 36. Rxf8+ {[%emt 0:01:58]} Kg7 {[%emt 0:00:07]} 37. Rb8 {[%emt 0:01:38]} Ra2 {[%emt 0:00:51]} 38. Rxb5 {[%emt 0:00:10]} b2 {[%emt 0:00:32]} 39. Kh2 {[%emt 0:00:21]} Rxa6 {[%emt 0:00:32]} 40. Rxb2 {[%emt 0:00:00]} Ra7 {[%emt 0:00:00]} 41. Nc5 {[%emt 0:00:24]} Ra3 {[%emt 0:02:49]} 42. Rb7+ {[%emt 0:00:30]} Kh6 {[%emt 0:00:32]} 43. Nxe6 {[%emt 0:00:08]} Ra8 {[%emt 0:00:02]} 44. Rf7 {[%emt 0:00:54]} f5 {[%emt 0:01:01]} 45. Nf8 {[%emt 0:00:15]} Ra2 {[%emt 0:00:09]} 46. h4 {[%emt 0:00:30]} Kh5 {[%emt 0:00:08]} 47. Rxh7+ {[%emt 0:00:10]} Kg4 {[%emt 0:00:08]} 48. f3+ 1-0

[Event "Polish Youth B18 Championship 2023"]
[Site "Jastrzebia Gora"]
[Date "2023.03.18"]
[Round "8.22"]
[White "Smuda, Tomasz"]
[Black "Sternik, Piotr"]
[Result "1/2-1/2"]
[ECO "A00"]
[WhiteElo "1654"]
[BlackElo "1746"]
[Annotator "NA RC COMBH"]
[PlyCount "79"]
[EventDate "2023.03.11"]
[EventType "swiss"]
[EventCountry "POL"]
[SourceTitle "playchess.com"]
[Source "ChessBase"]
[SourceQuality "1"]
[TimeControl "40/5400+30:1800+30"]

1. Nc3 {[%emt 0:00:12]} d5 {[%emt 0:00:12]} 2. e4 {[%emt 0:00:09]} dxe4 {[%emt 0:01:56]} 3. Nxe4 {[%emt 0:00:14]} c6 {[%emt 0:03:26]} 4. Nf3 {[%emt 0:08:28]} Bg4 {[%emt 0:02:46]} 5. Bc4 {[%emt 0:01:04]} e6 {[%emt 0:00:23]} 6. h3 {[%emt 0:04:39]} Bh5 {[%emt 0:03:02]} 7. Ng3 {[%emt 0:00:41]} Bxf3 {[%emt 0:00:08]} 8. Qxf3 {[%emt 0:00:09]} Nf6 {[%emt 0:00:31]} 9. O-O {[%emt 0:00:21]} Be7 {[%emt 0:01:28]} 10. c3 {[%emt 0:07:40]} Nbd7 {[%emt 0:00:27]} 11. d4 {[%emt 0:00:55]} O-O {[%emt 0:00:31]} 12. Re1 {[%emt 0:00:50]} Re8 {[%emt 0:06:23]} 13. Bg5 {[%emt 0:04:31]} h6 {[%emt 0:04:12]} 14. Bxf6 {[%emt 0:00:45]} Nxf6 {[%emt 0:00:06]} 15. Rad1 {[%emt 0:01:19]} Qc7 {[%emt 0:00:36]} 16. Ne4 {[%emt 0:03:43]} Nd5 {[%emt 0:01:02]} 17. Bd3 {[%emt 0:11:08]} Qf4 {[%emt 0:07:16]} 18. Qxf4 {[%emt 0:07:48]} Nxf4 {[%emt 0:00:07]} 19. Bc2 {[%emt 0:00:05]} Rad8 {[%emt 0:00:17]} 20. Kf1 {[%emt 0:00:26]} Rd7 {[%emt 0:11:53]} 21. h4 {[%emt 0:13:01]} Red8 {[%emt 0:01:19]} 22. g3 {[%emt 0:00:27]} Nd5 {[%emt 0:00:31]} 23. Rd2 {[%emt 0:07:22]} b6 {[%emt 0:00:33]} 24. Rd3 {[%emt 0:06:54]} a5 {[%emt 0:06:40]} 25. Red1 {[%emt 0:03:00]} b5 {[%emt 0:02:40]} 26. Nd2 {[%emt 0:08:05]} Nb6 {[%emt 0:00:30]} 27. Ke2 {[%emt 0:02:30]} a4 {[%emt 0:16:42]} 28. b3 {[%emt 0:03:08]} axb3 {[%emt 0:02:09]} 29. axb3 {[%emt 0:03:14]} Ra7 {[%emt 0:00:36]} 30. b4 {[%emt 0:01:50]} Nd5 {[%emt 0:01:38]} 31. Bb3 {[%emt 0:00:27]} Ra3 {[%emt 0:01:02]} 32. Bxd5 {[%emt 0:00:51]} cxd5 {[%emt 0:00:01]} 33. Rb1 {[%emt 0:00:28]} Rc8 {[%emt 0:00:09]} 34. Nb3 {[%emt 0:00:08]} Ra2+ {[%emt 0:02:32]} 35. Rd2 {[%emt 0:00:47]} Rca8 {[%emt 0:00:56]} 36. Rbb2 {[%emt 0:00:31]} R2a3 {[%emt 0:01:07]} 37. Kd3 {[%emt 0:00:36]} Bd6 {[%emt 0:00:23]} 38. f4 {[%emt 0:00:30]} Kf8 {[%emt 0:01:08]} 39. Nc5 {[%emt 0:00:32]} Ra1 {[%emt 0:00:52]} 40. Nb3 {[%emt 0:00:00]} 1/2-1/2

[Event "Polish Youth B18 Championship 2023"]
[Site "Jastrzebia Gora"]
[Date "2023.03.19"]
[Round "9.1"]
[White "Dzida, Kamil"]
[Black "Karolczuk, Iwo"]
[Result "1/2-1/2"]
[ECO "B91"]
[WhiteElo "2333"]
[BlackElo "2346"]
[Annotator "TA"]
[PlyCount "76"]
[EventDate "2023.03.11"]
[EventType "swiss"]
[EventCountry "POL"]
[SourceTitle "playchess.com"]
[Source "ChessBase"]
[SourceQuality "1"]
[TimeControl "40/5400+30:1800+30"]

{[%evp 17,76,20,11,0,0,0,0,0,0,0,14,13,10,4,15,26,15,17,50,0,0,0,0,0,0,0,0,-17,-9,-15,-6,-53,-41,-54,-40,-49,-47,-41,-35,-39,-44,-50,-52,-70,-62,-63,-43,-45,-35,-29,0,0,0,-8,-8,-8,-8,-28,0,0,0]} 1. e4 {[%emt 0:00:03]} c5 {[%emt 0:00:33]} 2. Nf3 {[%emt 0:00:03]} d6 {[%emt 0:00:05]} 3. d4 {[%emt 0:00:08]} cxd4 {[%emt 0:00:25]} 4. Nxd4 {[%emt 0:00:06]} Nf6 {[%emt 0:00:05]} 5. Nc3 {[%emt 0:00:07]} a6 {[%emt 0:00:06]} 6. g3 {[%emt 0:00:06]} e5 {[%emt 0:00:40]} 7. Nb3 {[%emt 0:00:10]} Be7 {[%emt 0:00:18]} 8. Bg2 {[%emt 0:00:07]} O-O {[%emt 0:00:58]} 9. O-O {[%emt 0:00:08]} b5 {[%emt 0:00:49]} 10. a4 {[%emt 0:00:10] B91: Sicilian Najdorf: 6 g3.} b4 {[%emt 0:00:08]} 11. Nd5 {[%emt 0:00:05]} Nxd5 {[%emt 0:00:13]} 12. Qxd5 {[%emt 0:00:06]} Ra7 {[%emt 0:00:34][%cal Ba8a7,Ba7b7,Bb7b4][%mdl 32]} 13. Be3 {[%emt 0:00:08]} Be6 {[%emt 0:01:28]} 14. Qd3 {[%emt 0:00:07]} Rb7 {[%emt 0:03:17]} 15. Rfc1 {[%emt 0:00:08]} Qc7 {[%emt 0:02:31] [#]} 16. c3 $1 {[%emt 0:00:18] [#] Threatens to win with cxb4.} bxc3 $146 {[%emt 0:05:23]} (16... Bxb3 $2 17. cxb4 Qd8 18. Qxb3 $18) (16... Qd8 17. c4) ({Predecessor:} 16... Bc4 17. Qc2 Be6 18. Qd1 Qd8 19. Bf1 bxc3 20. Rxc3 Bg5 21. Bxg5 Qxg5 22. Bc4 Bxc4 23. Rxc4 {1-0 Ponomariov,R (2734)-Safarli,E (2620) Olympiad-40 Istanbul 2012 (10.2)}) 17. Rxc3 {[%emt 0:00:16]} Qd7 {[%emt 0:01:04]} 18. Na5 {[%emt 0:09:27]} (18. Qc2 $14) 18... Rb4 $11 {[%emt 0:16:57]} 19. b3 {[%emt 0:04:05]} Qd8 {[%emt 0:05:21]} 20. Nc4 {[%emt 0:04:17]} Nc6 {[%emt 0:02:44]} 21. Nxd6 {[%emt 0:24:59][%mdl 64] [#] Discovered Attack} Nd4 {[%emt 0:01:12]} 22. Nc4 {[%emt 0:00:53]} ({Avoid the trap} 22. Bxd4 $2 exd4 23. Rc6 Bxd6 $19) 22... Bxc4 {[%emt 0:10:28]} 23. bxc4 {[%emt 0:00:04]} Bc5 {[%emt 0:00:19]} 24. Bxd4 {[%emt 0:06:01]} (24. Qd1 $11) 24... Bxd4 $15 {[%emt 0:03:27]} 25. Rd1 $1 {[%emt 0:00:08] White is weak on the dark squares} Qb6 {[%emt 0:04:10]} 26. c5 {[%emt 0:01:23]} Bxc5 {[%emt 0:01:55]} 27. Rc2 {[%emt 0:03:09]} Rxa4 {[%emt 0:02:23]} 28. Rdc1 {[%emt 0:03:12]} Bd4 {[%emt 0:03:26]} 29. Bf1 {[%emt 0:01:01]} a5 {[%emt 0:04:51]} 30. Kg2 {[%emt 0:02:30]} Rb4 {[%emt 0:03:30]} 31. Rc6 {[%emt 0:08:41]} Qd8 {[%emt 0:04:34]} 32. R1c2 {[%emt 0:02:23]} g6 {[%emt 0:04:38]} 33. Qf3 {[%emt 0:04:50]} Rb2 {[%emt 0:03:15]} (33... Kg7 {feels hotter.} 34. Bc4 Rb6 35. Rxb6 Bxb6 36. Bd5 f5) 34. Rxb2 {[%emt 0:03:36]} Bxb2 {[%emt 0:00:05]} 35. Qb3 {[%emt 0:00:49]} Bd4 {[%emt 0:02:14]} 36. Bc4 {[%emt 0:02:44]} Kg7 {[%emt 0:01:37]} 37. Qb5 {[%emt 0:05:59]} a4 {[%emt 0:05:42]} 38. Qxa4 {[%emt 0:03:09]} Qe7 {[%emt 0:03:46] Weighted Error Value: White=0.07 (flawless) /Black=0.05 (flawless)} 1/2-1/2